fUSD/lending_fUSD_20240802
["ID","MTS","AMOUNT","RATE_DAILY","PERIOD"]
[333914100,1722627046465,-1739.17,0.00016438,2]
[333914101,1722627046474,-500.0,0.00016438,2]
[333914102,1722627046483,-500.0,0.00016438,2]
[333914103,1722627046494,-683.52,0.00016438,2]
[333914104,1722627046505,-500.0,0.00016438,2]
[333914105,1722627046515,-680.68,0.00016438,2]
[333914107,1722627046525,-1098.48,0.00016438,2]
[333914109,1722627046535,-540.98,0.00016438,2]
[333914111,1722627046544,-500.0,0.00016438,2]
[333914113,1722627046554,-500.0,0.00016438,2]
[333914115,1722627046563,-1051.37,0.00016438,2]
[333914117,1722627046573,-500.0,0.00016438,2]
[333914119,1722627046583,-686.01,0.00016438,2]
[333914121,1722627046593,-604.97,0.00016438,2]
[333914123,1722627046603,-512.23,0.00016438,2]
[333914125,1722627046612,-527.81,0.00016438,2]
[333914127,1722627046623,-500.0,0.00016438,2]
[333914129,1722627046634,-643.13,0.00016438,2]
[333914131,1722627046643,-1754.57,0.00016438,2]
[333914133,1722627046655,-1138.61,0.00016438,2]
[333914135,1722627046666,-644.98,0.00016438,2]
[333914137,1722627046675,-1992.17,0.00016438,2]
[333914140,1722627046686,-500.0,0.00016438,2]
[333914141,1722627046699,-941.31,0.00016438,2]
[333914143,1722627046708,-542.0,0.00016438,2]
[333914145,1722627046717,-500.0,0.00016438,2]
[333914147,1722627046727,-500.0,0.00016438,2]
[333914149,1722627046736,-500.0,0.00016438,2]
[333914151,1722627046746,-2549.42,0.00016438,2]
[333914153,1722627046755,-2006.99,0.00016438,2]
[333914155,1722627046765,-687.66,0.00016438,2]
[333914157,1722627046774,-500.0,0.00016438,2]
[333914159,1722627046783,-782.13,0.00016438,2]
[333914161,1722627046793,-1219.23,0.00016438,2]
[333914163,1722627046802,-732.1,0.00016438,2]
[333914165,1722627046812,-500.0,0.00016438,2]
[333914167,1722627046821,-586.27,0.00016438,2]
[333914169,1722627046831,-500.0,0.00016438,2]
[333914171,1722627046840,-500.0,0.00016438,2]
[333914173,1722627046850,-500.0,0.00016438,2]
[333914175,1722627046859,-1316.36,0.00016438,2]
[333914177,1722627046869,-556.89591727,0.00016438,2]
[333914179,1722627046879,-500.0,0.00016438,2]
[333914181,1722627046888,-619.03,0.00016438,2]
[333914183,1722627046897,-500.0,0.00016438,2]
[333914185,1722627046907,-521.6,0.00016438,2]
[333914187,1722627046916,-1202.46,0.00016438,2]
[333914189,1722627046927,-500.0,0.00016438,2]
[333914191,1722627046937,-500.0,0.00016438,2]
[333914193,1722627046948,-1569.05,0.00016438,2]
[333914195,1722627046957,-1094.41,0.00016438,2]
[333914197,1722627046967,-500.0,0.00016438,2]
[333914199,1722627046976,-500.0,0.00016438,2]
[333914201,1722627046986,-609.65,0.00016438,2]
[333914203,1722627046996,-500.0,0.00016438,2]
[333914205,1722627047006,-618.42,0.00016438,2]
[333914207,1722627047016,-500.0,0.00016438,2]
[333914209,1722627047029,-574.17,0.00016438,2]
[333914211,1722627047040,-664.4,0.00016438,2]
[333914213,1722627047049,-500.0,0.00016438,2]
[333914215,1722627047059,-1553.27,0.00016438,2]
[333914217,1722627047068,-2278.21,0.00016438,2]
[333914219,1722627047078,-500.0,0.00016438,2]
[333914221,1722627047088,-512.93,0.00016438,2]
[333914223,1722627047098,-500.0,0.00016438,2]
[333914225,1722627047113,-1160.06,0.00016438,2]
[333914227,1722627047123,-500.0,0.00016438,2]
[333914229,1722627047132,-500.0,0.00016438,2]
[333914231,1722627047143,-500.0,0.00016438,2]
[333914233,1722627047152,-635.45,0.00016438,2]
[333914235,1722627047162,-1135.56,0.00016438,2]
[333914237,1722627047171,-1593.21,0.00016438,2]
[333914239,1722627047181,-238.9598877,0.00016438,2]
[333914241,1722627047191,-1053.61,0.00016438,2]
[333914243,1722627047202,-500.0,0.00016438,2]
[333914245,1722627047214,-940.55,0.00016438,2]
[333914247,1722627047224,-1216.57,0.00016438,2]
[333914249,1722627047233,-515.83,0.00016438,2]
[333914251,1722627047243,-1490.97,0.00016438,2]
[333914253,1722627047252,-500.0,0.00016438,2]
[333914255,1722627047261,-500.0,0.00016438,2]
[333914257,1722627047271,-2052.36,0.00016438,2]
[333914259,1722627047280,-1421.8,0.00016438,2]
[333914261,1722627047289,-531.71,0.00016438,2]
[333914263,1722627047299,-500.0,0.00016438,2]
[333914265,1722627047309,-506.6,0.00016438,2]
[333914267,1722627047318,-500.0,0.00016438,2]
[333914269,1722627047328,-686.55,0.00016438,2]
[333914271,1722627047337,-617.12,0.00016438,2]
[333914273,1722627047347,-643.61,0.00016438,2]
[333914275,1722627047356,-1614.55,0.00016438,2]
[333914277,1722627047365,-500.0,0.00016438,2]
[333914279,1722627047376,-696.46,0.00016438,2]
[333914281,1722627047386,-500.0,0.00016438,2]
[333914283,1722627047395,-500.0,0.00016438,2]
[333914285,1722627047404,-500.0,0.00016438,2]
[333914287,1722627047413,-500.0,0.00016438,2]
[333914289,1722627047423,-640.6,0.00016438,2]
[333914291,1722627047432,-678.68,0.00016438,2]
[333914293,1722627047441,-500.0,0.00016438,2]
[333914295,1722627047451,-2259.78,0.00016438,2]
[333914296,1722627047461,-1848.23,0.00016438,2]
[333914298,1722627047470,-500.0,0.00016438,2]
[333914301,1722627047480,-500.0,0.00016438,2]
[333914303,1722627047490,-500.0,0.00016438,2]
[333914305,1722627047501,-500.0,0.00016438,2]
[333914307,1722627047511,-500.0,0.00016438,2]
[333914309,1722627047522,-500.0,0.00016438,2]
[333914311,1722627047531,-500.0,0.00016438,2]
[333914313,1722627047541,-500.0,0.00016438,2]
[333914315,1722627047550,-500.0,0.00016438,2]
[333914317,1722627047559,-761.11,0.00016438,2]
[333914319,1722627047569,-500.0,0.00016438,2]
[333914321,1722627047579,-1530.05,0.00016438,2]
[333914323,1722627047590,-500.0,0.00016438,2]
[333914325,1722627047601,-1598.71,0.00016438,2]
[333914327,1722627047612,-500.0,0.00016438,2]
[333914330,1722627047623,-640.51,0.00016438,2]
[333914332,1722627047634,-500.0,0.00016438,2]
[333914334,1722627047644,-836.74,0.00016438,2]
[333914336,1722627047653,-500.0,0.00016438,2]
[333914338,1722627047663,-872.42,0.00016438,2]
[333914340,1722627047672,-1247.81,0.00016438,2]
[333914342,1722627047683,-500.0,0.00016438,2]
[333914344,1722627047693,-500.0,0.00016438,2]
[333914346,1722627047703,-500.0,0.00016438,2]
[333914348,1722627047712,-500.0,0.00016438,2]
[333914350,1722627047721,-500.0,0.00016438,2]
[333914352,1722627047730,-500.0,0.00016438,2]
[333914354,1722627047742,-500.0,0.00016438,2]
[333914356,1722627047751,-600.12,0.00016438,2]
[333914358,1722627047762,-500.0,0.00016438,2]
[333914360,1722627047774,-500.0,0.00016438,2]
[333914362,1722627047784,-500.0,0.00016438,2]
[333914364,1722627047795,-500.0,0.00016438,2]
[333914367,1722627047806,-500.0,0.00016438,2]
[333914369,1722627047816,-500.0,0.00016438,2]
[333914371,1722627047826,-510.09,0.00016438,2]
[333914373,1722627047836,-500.0,0.00016438,2]
[333914375,1722627047846,-500.0,0.00016438,2]
[333914377,1722627047856,-500.0,0.00016438,2]
[333914379,1722627047868,-500.0,0.00016438,2]
[333914381,1722627047877,-500.0,0.00016438,2]
[333914383,1722627047887,-1227.72,0.00016438,2]
[333914385,1722627047896,-1747.63,0.00016438,2]
[333914387,1722627047906,-607.64,0.00016438,2]
[333914389,1722627047916,-566.89,0.00016438,2]
[333914391,1722627047925,-500.0,0.00016438,2]
[333914393,1722627047935,-500.0,0.00016438,2]
[333914395,1722627047946,-500.0,0.00016438,2]
[333914397,1722627047955,-1372.82,0.00016438,2]
[333914399,1722627047965,-500.0,0.00016438,2]
[333914401,1722627047974,-500.0,0.00016438,2]
[333914403,1722627047983,-2313.62,0.00016438,2]
[333914405,1722627047993,-1609.33,0.00016438,2]
[333914407,1722627048002,-500.0,0.00016438,2]
[333914409,1722627048012,-1760.82,0.00016438,2]
[333914411,1722627048020,-500.0,0.00016438,2]
[333914413,1722627048029,-599.56,0.00016438,2]
[333914415,1722627048039,-1676.53,0.00016438,2]
[333914417,1722627048048,-500.0,0.00016438,2]
[333914419,1722627048058,-1474.19,0.00016438,2]
[333914421,1722627048068,-556.25,0.00016438,2]
[333914423,1722627048078,-604.35,0.00016438,2]
[333914425,1722627048088,-500.0,0.00016438,2]
[333914427,1722627048100,-500.0,0.00016438,2]
[333914429,1722627048111,-740.9,0.00016438,2]
[333914431,1722627048120,-500.0,0.00016438,2]
[333914433,1722627048130,-500.0,0.00016438,2]
[333914435,1722627048140,-610.69,0.00016438,2]
[333914436,1722627048149,-599.77673216,0.00016438,2]
[333914437,1722627048159,-500.0,0.00016438,2]
[333914438,1722627048168,-500.0,0.00016438,2]
[333914439,1722627048181,-929.91,0.00016438,2]
[333914440,1722627048190,-500.0,0.00016438,2]
[333914441,1722627048203,-1928.53,0.00016438,2]
[333914442,1722627048213,-500.0,0.00016438,2]
[333914443,1722627048222,-1893.83,0.00016438,2]
[333914444,1722627048231,-734.9,0.00016438,2]
[333914445,1722627048242,-772.26,0.00016438,2]
[333914447,1722627048251,-1446.52,0.00016438,2]
[333914449,1722627048261,-500.0,0.00016438,2]
[333914451,1722627048271,-500.0,0.00016438,2]
[333914453,1722627048281,-1599.04,0.00016438,2]
[333914455,1722627048290,-183.30224605,0.00016438,2]
[333914457,1722627048300,-827.84,0.00016438,2]
[333914459,1722627048309,-500.0,0.00016438,2]
[333914461,1722627048319,-658.41,0.00016438,2]
[333914463,1722627048329,-1229.68,0.00016438,2]
[333914465,1722627048338,-500.0,0.00016438,2]
[333914467,1722627048348,-1168.48,0.00016438,2]
[333914469,1722627048358,-1404.34,0.00016438,2]
[333914471,1722627048367,-1047.57,0.00016438,2]
[333914473,1722627048376,-734.54,0.00016438,2]
[333914475,1722627048386,-503.91798216,0.00016438,2]
[333914477,1722627048395,-1117.23,0.00016438,2]
[333914479,1722627048405,-528.82,0.00016438,2]
[333914481,1722627048414,-500.0,0.00016438,2]
[333914483,1722627048424,-481.85954265,0.00016438,2]
[333914485,1722627048434,-1027.07,0.00016438,2]
[333914487,1722627048446,-930.45,0.00016438,2]
[333914489,1722627048456,-500.0,0.00016438,2]
[333914491,1722627048466,-744.3,0.00016438,2]
[333914493,1722627048476,-859.84,0.00016438,2]
[333914495,1722627048485,-1692.28,0.00016438,2]
[333914497,1722627048495,-2319.75,0.00016438,2]
[333914499,1722627048504,-1819.45,0.00016438,2]
[333914501,1722627048513,-1277.48,0.00016438,2]
[333914503,1722627048523,-500.0,0.00016438,2]
[333914505,1722627048532,-500.0,0.00016438,2]
[333914507,1722627048541,-684.81,0.00016438,2]
[333914509,1722627048551,-500.0,0.00016438,2]
[333914511,1722627048561,-1733.47,0.00016438,2]
[333914513,1722627048570,-500.0,0.00016438,2]
[333914515,1722627048579,-500.0,0.00016438,2]
[333914517,1722627048588,-500.0,0.00016438,2]
[333914519,1722627048597,-2113.63,0.00016438,2]
[333914521,1722627048607,-3632.08,0.00016438,2]
[333914523,1722627048616,-505.53,0.00016438,2]
[333914525,1722627048626,-780.1,0.00016438,2]
[333914527,1722627048635,-2743.7,0.00016438,2]
[333914529,1722627048645,-500.0,0.00016438,2]
[333914531,1722627048654,-1147.01,0.00016438,2]
[333914533,1722627048665,-500.0,0.00016438,2]
[333914535,1722627048674,-500.0,0.00016438,2]
[333914537,1722627048684,-500.0,0.00016438,2]
[333914539,1722627048693,-1113.73,0.00016438,2]
[333914541,1722627048708,-1391.61,0.00016438,2]
[333914543,1722627048718,-500.0,0.00016438,2]
[333914545,1722627048727,-524.35,0.00016438,2]
[333914546,1722627048736,-595.2,0.00016438,2]
[333914548,1722627048746,-500.0,0.00016438,2]
[333914551,1722627048756,-820.62,0.00016438,2]
[333914553,1722627048766,-1859.79,0.00016438,2]
[333914554,1722627048775,-1041.31,0.00016438,2]
[333914556,1722627048785,-500.0,0.00016438,2]
[333914558,1722627048794,-1020.04,0.00016438,2]
[333914560,1722627048804,-500.0,0.00016438,2]
[333914562,1722627048814,-500.0,0.00016438,2]
[333914564,1722627048823,-1807.31,0.00016438,2]
[333914566,1722627048833,-2490.06,0.00016438,2]
[333914568,1722627048843,-555.10212263,0.00016438,2]
[333914570,1722627048853,-1662.38,0.00016438,2]
[333914572,1722627048863,-782.49,0.00016438,2]
[333914574,1722627048872,-500.0,0.00016438,2]
[333914576,1722627048882,-500.0,0.00016438,2]
[333914578,1722627048891,-500.0,0.00016438,2]
[333914580,1722627048900,-958.73,0.00016438,2]
[333914582,1722627048910,-500.0,0.00016438,2]
[333914584,1722627048919,-101.33869005,0.00016438,2]
[333914589,1722627048952,-427.14130995,0.00016438,2]
[333914591,1722627048962,-500.0,0.00016438,2]
[333914592,1722627048971,-520.58,0.00016438,2]
[333914594,1722627048981,-554.33,0.00016438,2]
[333914596,1722627048993,-76.00918409,0.00016438,2]
[333914599,1722627049004,-423.99081591,0.00016438,2]
[333914601,1722627049013,-798.48,0.00016438,2]
[333914603,1722627049023,-2067.3,0.00016438,2]
[333914605,1722627049032,-500.0,0.00016438,2]
[333914607,1722627049041,-500.0,0.00016438,2]
[333914609,1722627049051,-554.43,0.00016438,2]
[333914611,1722627049061,-150.0,0.00016438,2]
[333914613,1722627049070,-500.0,0.00016438,2]
[333914615,1722627049080,-640.46,0.00016438,2]
[333914617,1722627049090,-2195.3,0.00016438,2]
[333914648,1722627049409,-500.0,0.00016438,2]
[333914650,1722627049419,-500.0,0.00016438,2]
[333914652,1722627049429,-500.0,0.00016438,2]
[333914654,1722627049442,-725.21,0.00016438,2]
[333914656,1722627049453,-966.46,0.00016438,2]
[333914658,1722627049462,-129.58056483,0.00016438,2]
[333914660,1722627049475,-403.19142657,0.00016438,2]
[333914662,1722627049486,-528.99,0.00016438,2]
[333914664,1722627049496,-500.0,0.00016438,2]
[333914666,1722627049506,-38.52212893,0.00016438,2]
[333914668,1722627049518,-2082.15278321,0.00016438,2]
[333914671,1722627049529,-230.68508786,0.00016438,2]
[333914673,1722627049539,-500.0,0.00016438,2]
[333914675,1722627049548,-2168.38907603,0.00016438,2]
[333914677,1722627049564,-312.45092397,0.00016438,2]
[333914679,1722627049574,-500.0,0.00016438,2]
[333914681,1722627049584,-500.0,0.00016438,2]
[333914683,1722627049593,-500.0,0.00016438,2]
[333914685,1722627049603,-735.47664149,0.00016438,2]
[333914687,1722627049615,-932.46335851,0.00016438,2]
[333914689,1722627049625,-1048.53664149,0.00016438,2]
[333914692,1722627049637,-575.64335851,0.00016438,2]
[333914694,1722627049647,-500.0,0.00016438,2]
[333914696,1722627049657,-1302.2889114,0.00016438,2]
[333915582,1722627064159,-263.1918,0.000108,2]
[333915583,1722627075032,-153.18864,0.0001089,2]
[333915584,1722627141446,886.49,0.0001089,2]
[333915585,1722627141709,-886.49,0.0001089,2]
[333915586,1722627141969,-886.49,0.0001089,2]
[333915587,1722627142363,-886.49,0.0001089,2]
[333915588,1722627142985,-886.49,0.0001089,2]
[333915589,1722627151385,-886.49,0.0001089,2]
[333915590,1722627151853,-702.44378685,0.0001089,2]
[333915626,1722628168415,7924.1569561,0.00025,60]
[333915651,1722628231822,-150.0,0.00010849,2]
[333915653,1722628231831,-150.0,0.00010889,2]
[333915655,1722628231841,-2700.0,0.0001089,2]
[333915656,1722628231937,-282.9787797,0.0001089,2]
[333915657,1722628231948,-271.05628702,0.0001089,2]
[333915658,1722628231960,-67.38716172,0.0001089,2]
[333915659,1722628231969,-1899.37623221,0.0001089,2]
[333915660,1722628232000,-2456.7,0.0001089,2]
[333915661,1722628232012,-1225.43238128,0.0001089,2]
[333915662,1722628232021,-103.85164645,0.0001089,2]
[333915663,1722628232032,-345.31733267,0.0001089,2]
[333915664,1722628232042,-52.50342938,0.0001089,2]
[333915665,1722628232053,-247.22596503,0.0001089,2]
[333915666,1722628232062,-23.03990724,0.0001089,2]
[333915667,1722628232075,-314.52,0.0001089,2]
[333915668,1722628232134,-771.91518853,0.0001089,2]
[333915669,1722628232146,-2677.57029669,0.0001089,2]
[333915670,1722628232157,-227.58642964,0.0001089,2]
[333915671,1722628232167,-93.84327367,0.0001089,2]
[333915672,1722628232183,-310.40342882,0.0001089,2]
[333915673,1722628232192,-363.69508992,0.0001089,2]
[333915675,1722628232202,-886.49,0.00012365,2]
[333915677,1722628232211,-891.68121634,0.00012696,2]
[333915678,1722628232220,-891.68121634,0.00012749,2]
[333915680,1722628232230,-1496.07373207,0.00012883,2]
[333915682,1722628232239,-947.76827511,0.00013132,2]
[333915684,1722628232248,-483.33034023,0.0001319,2]
[333915685,1722628232259,-9007.5580533,0.0001319,2]
[333915686,1722628232270,-420.98804803,0.0001319,2]
[333915687,1722628232345,-3988.47516304,0.0001319,2]
[333915688,1722628232355,-530.49366899,0.000132,2]
[333915689,1722628232364,-26808.03116796,0.000132,2]
[333915690,1722628232391,-30540.94970277,0.000132,2]
[333915691,1722628232405,-4036.76951601,0.000132,2]
[333915695,1722628237849,-40353.3442669,0.000132,2]
[333915697,1722628238295,-526.07957864,0.000132,2]
[333915699,1722628238742,-363.17434977,0.000132,2]
[333915701,1722628238754,-275.96458678,0.000132,2]
[333915703,1722628238766,-414.74931863,0.000132,2]
[333915705,1722628238777,-3185.485254,0.000132,2]
[333915707,1722628238789,-32295.04774147,0.000132,2]
[333915708,1722628238799,-1330.8798205,0.00013242,2]
[333915709,1722628238808,-1330.87982041,0.0001376,2]
[333915710,1722628238818,-2500.4353,0.00013889,2]
[333915711,1722628238827,-150.41,0.00013973,2]
[333915712,1722628238837,-208.84,0.0001413,2]
[333915713,1722628238846,-250.0,0.00014165,2]
[333915714,1722628238855,-150.0,0.00014204,2]
[333915715,1722628238865,-542.31,0.00014258,2]
[333915716,1722628238874,-1330.87982041,0.00014277,2]
[333915717,1722628238883,-161.55,0.0001432,2]
[333915718,1722628238893,-886.49,0.00014629,2]
[333915719,1722628238903,-150.0,0.0001477,2]
[333915720,1722628238913,-1330.87982041,0.00014795,2]
[333915721,1722628238922,-171.6,0.00014831,2]
[333915722,1722628238931,-708.55,0.00014896,2]
[333915723,1722628238940,-499.99,0.00014896,2]
[333915724,1722628238949,-155.0,0.00014896,2]
[333915725,1722628238958,-168.62,0.00014941,2]
[333915726,1722628238967,-244.8,0.00014957,2]
[333915727,1722628238976,-1330.87982041,0.00015312,2]
[333915728,1722628238985,-530.37,0.00015342,2]
[333915729,1722628238994,-170.33,0.00015444,2]
[333915730,1722628239004,-755.2,0.00015451,2]
[333915731,1722628239013,-2174.44,0.00015562,2]
[333915732,1722628239022,-530.37,0.00015678,2]
[333915733,1722628239031,-1000.0,0.0001579,2]
[333915734,1722628239040,-2500.0,0.0001579,2]
[333915735,1722628239049,-1330.87982041,0.0001583,2]
[333915736,1722628239059,-9366.0,0.0001589,2]
[333915737,1722628239069,-839.9,0.00015941,2]
[333915738,1722628239079,-530.37,0.00016078,2]
[333915739,1722628239089,-171.71,0.00016078,2]
[333915740,1722628239098,-356.11,0.00016078,2]
[333915741,1722628239107,-300.0,0.00016078,2]
[333915742,1722628239116,-851.6,0.00016078,2]
[333915743,1722628239125,-221.61,0.00016078,2]
[333915744,1722628239135,-7417.0318,0.0001618,2]
[333915745,1722628239144,-21774.9148,0.0001618,2]
[333915746,1722628239153,-1401.4409,0.0001618,2]
[333915747,1722628239164,-1000.0,0.0001618,2]
[333915748,1722628239173,-3604.1128,0.0001618,2]
[333915749,1722628239183,-175524.73473136,0.0001628,2]
[333915750,1722628239192,-7500.0,0.00016338,2]
[333915751,1722628239202,-179.61977285,0.00016338,2]
[333915752,1722628239212,-176.37316993,0.00016338,2]
[333915753,1722628239223,-516.88714754,0.00016338,2]
[333915754,1722628239233,-1000.0,0.00016338,2]
[333915755,1722628239242,-332.1951,0.00016338,2]
[333915756,1722628239252,-1330.87982041,0.00016347,2]
[333915757,1722628239261,-150.0,0.00016356,2]
[333915758,1722628239271,-300.0,0.00016356,2]
[333915759,1722628239280,-1500.0,0.00016413,2]
[333915760,1722628239289,-1500.0,0.00016422,2]
[333915761,1722628239299,-153.74,0.00016428,2]
[333915762,1722628239308,-153.74,0.00016428,2]
[333915763,1722628239319,-162.31994849,0.00016435,2]
[333915764,1722628239330,-160817.49380923,0.00016438,7]
[333915765,1722628239339,-552.44678633,0.00016438,50]
[333915766,1722628239349,-22078.99409457,0.00016438,2]
[333915767,1722628239359,-4268.70526342,0.00016438,15]
[333915768,1722628239370,-201.32721051,0.00016438,2]
[333915769,1722628239380,-500.0,0.00016438,2]
[333915770,1722628239389,-500.0,0.00016438,2]
[333915771,1722628239399,-537.01570494,0.00016438,2]
[333915772,1722628239409,-500.0,0.00016438,2]
[333915773,1722628239418,-500.0,0.00016438,2]
[333915774,1722628239428,-1000.0,0.00016438,2]
[333915775,1722628239438,-500.0,0.00016438,2]
[333915776,1722628239447,-500.0,0.00016438,2]
[333915777,1722628239457,-500.0,0.00016438,2]
[333915778,1722628239467,-500.0,0.00016438,2]
[333915779,1722628239477,-500.0,0.00016438,2]
[333915780,1722628239486,-500.0,0.00016438,2]
[333915781,1722628239498,-500.0,0.00016438,2]
[333915782,1722628239513,-500.0,0.00016438,2]
[333915783,1722628239524,-300.0,0.00016438,2]
[333915784,1722628239534,-500.0,0.00016438,2]
[333915785,1722628239544,-500.0,0.00016438,2]
[333915786,1722628239554,-500.0,0.00016438,2]
[333915787,1722628239564,-500.0,0.00016438,2]
[333915788,1722628239574,-500.0,0.00016438,2]
[333915789,1722628239585,-745.02,0.00016438,2]
[333915791,1722628239594,-1556.51,0.00016438,2]
[333915793,1722628239604,-200.0,0.00016438,2]
[333915795,1722628239613,-500.0,0.00016438,2]
[333915797,1722628239622,-689.8,0.00016438,2]
[333915799,1722628239632,-500.0,0.00016438,2]
[333915801,1722628239641,-938.93,0.00016438,2]
[333915803,1722628239650,-500.0,0.00016438,2]
[333915805,1722628239662,-1752.5,0.00016438,2]
[333915807,1722628239671,-1069.87,0.00016438,2]
[333915809,1722628239680,-1084.31,0.00016438,2]
[333915810,1722628239690,-1048.55,0.00016438,2]
[333915811,1722628239700,-733.0,0.00016438,2]
[333915812,1722628239710,-500.0,0.00016438,2]
[333915813,1722628239719,-500.0,0.00016438,2]
[333915815,1722628239729,-500.0,0.00016438,2]
[333915816,1722628239739,-554.38,0.00016438,2]
[333915817,1722628239748,-500.0,0.00016438,2]
[333915818,1722628239757,-997.93,0.00016438,2]
[333915819,1722628239766,-566.49,0.00016438,2]
[333915820,1722628239775,-840.4,0.00016438,2]
[333915821,1722628239785,-977.54,0.00016438,2]
[333915822,1722628239794,-500.0,0.00016438,2]
[333915823,1722628239803,-611.01,0.00016438,2]
[333915825,1722628239813,-1301.76,0.00016438,2]
[333915827,1722628239822,-635.17,0.00016438,2]
[333915830,1722628239831,-500.0,0.00016438,2]
[333915833,1722628239840,-506.46,0.00016438,2]
[333915835,1722628239850,-571.19,0.00016438,2]
[333915836,1722628239859,-2103.83,0.00016438,2]
[333915837,1722628239868,-500.0,0.00016438,2]
[333915838,1722628239878,-1053.05,0.00016438,2]
[333915839,1722628239888,-519.91,0.00016438,2]
[333915840,1722628239897,-500.0,0.00016438,2]
[333915841,1722628239908,-500.0,0.00016438,2]
[333915842,1722628239918,-500.0,0.00016438,2]
[333915843,1722628239928,-1598.45,0.00016438,2]
[333915844,1722628239937,-500.0,0.00016438,2]
[333915845,1722628239946,-500.0,0.00016438,2]
[333915846,1722628239955,-1067.74,0.00016438,2]
[333915847,1722628239964,-500.0,0.00016438,2]
[333915848,1722628239973,-738.8,0.00016438,2]
[333915849,1722628239983,-2249.05,0.00016438,2]
[333915850,1722628239992,-500.0,0.00016438,2]
[333915851,1722628240002,-500.0,0.00016438,2]
[333915852,1722628240011,-500.0,0.00016438,2]
[333915853,1722628240021,-968.2,0.00016438,2]
[333915854,1722628240032,-749.48,0.00016438,2]
[333915855,1722628240042,-769.45,0.00016438,2]
[333915856,1722628240051,-980.63,0.00016438,2]
[333915857,1722628240061,-500.0,0.00016438,2]
[333915858,1722628240071,-1089.98,0.00016438,2]
[333915859,1722628240081,-708.33,0.00016438,2]
[333915860,1722628240090,-878.1,0.00016438,2]
[333915861,1722628240099,-2159.2,0.00016438,2]
[333915862,1722628240109,-500.0,0.00016438,2]
[333915863,1722628240118,-500.0,0.00016438,2]
[333915864,1722628240127,-500.0,0.00016438,2]
[333915865,1722628240136,-999.71,0.00016438,2]
[333915866,1722628240146,-1854.45,0.00016438,2]
[333915867,1722628240155,-500.0,0.00016438,2]
[333915868,1722628240170,-500.0,0.00016438,2]
[333915869,1722628240179,-500.0,0.00016438,2]
[333915870,1722628240189,-817.64,0.00016438,2]
[333915871,1722628240199,-614.43,0.00016438,2]
[333915872,1722628240208,-2086.82,0.00016438,2]
[333915873,1722628240218,-500.0,0.00016438,2]
[333915874,1722628240227,-500.0,0.00016438,2]
[333915875,1722628240237,-549.04,0.00016438,2]
[333915876,1722628240247,-500.0,0.00016438,2]
[333915877,1722628240257,-500.0,0.00016438,2]
[333915878,1722628240266,-500.0,0.00016438,2]
[333915879,1722628240275,-500.0,0.00016438,2]
[333915880,1722628240285,-500.0,0.00016438,2]
[333915881,1722628240294,-500.0,0.00016438,2]
[333915882,1722628240304,-500.0,0.00016438,2]
[333915883,1722628240314,-1819.19,0.00016438,2]
[333915884,1722628240323,-500.0,0.00016438,2]
[333915885,1722628240333,-500.0,0.00016438,2]